Cogmind - Beta 16 @@@ ROGUE MODE // 2025.12.27 @ 15:03:45 Player: PE-P51 Result: Destroyed by H-66 Slayer with Heavy Assault Rifle Performance ------------- Evolutions (4) 2000 Regions Visited (15) 3000 Robots Destroyed (180) 900 Value Destroyed (4360) 4360 Prototype IDs (24) 480 Alien Tech Used (0) 0 Bonus (672) 672 TOTAL SCORE: 11412 Bonus ------- High Alert Combat Kills 142 Follower Combat Kills 230 Met Data Miner 300 Cogmind --------- Core Integrity 0/850 Matter 250/300 Energy 64/100 System Corruption 26% Temperature Cool (0) Movement Flying (34) Location -6/Factory Parts ------- > --- POWER (1) -------- (None) > --- PROPULSION (4) --- Biomechanical Wings Biomechanical Wings Biomechanical Wings > --- UTILITY (8) ------ Improved Signal Interpreter Advanced Signal Interpreter Hacking Suite Hacking Suite Hacking Suite Makeshift Hacking Suite > --- WEAPON (2) ------- (None) > --- INVENTORY (5) ---- Triangulator Jamming Amplifier Advanced Assault Cannon Mini Grenade Launcher Peak State ------------ > --- POWER ------------ F-cell Engine > --- PROPULSION ------- Biomechanical Wings Biomechanical Wings Biomechanical Wings Biomechanical Wings > --- UTILITY ---------- Advanced Weight Redist. System Improved Sensor Array Improved Signal Interpreter Hacking Suite Hacking Suite Hacking Suite Makeshift Hacking Suite Improved System Shield > --- WEAPON ----------- Advanced Assault Cannon Heavy Flail > --- INVENTORY -------- Triangulator Jamming Amplifier Advanced System Shield Mini Grenade Launcher Improved Datajack [Rating: 66] Favorites ----------- Power Improved Ion Engine Engine Improved Ion Engine Power Core Backup Power VII Propulsion Light Treads Treads Light Treads Leg Aluminum Leg Flight Unit Improved VTOL Module Utility Hacking Suite Device Improved Heat Sink Storage High-capacity Storage Unit Processor Improved Signal Interpreter Hackware Hacking Suite Protection Hardened Light Armor Plating Weapon Minigun Energy Gun Gatling Laser Energy Cannon Advanced Beam Cannon Ballistic Gun Minigun Ballistic Cannon Advanced Assault Cannon Launcher Mini Grenade Launcher Impact Weapon Heavy Flail Special Melee Weapon Improved Datajack Build | -11 -10 -10 -9 -9 -8 -7 -7 -7 -7 -7 -7 -6 -6 -6 -6 ------- Run | Yrd Mat Min Mat Min Mat Fac Was Fac Low Low Dat Pro Fac Was Fac Slots Evolved 8 | . . . 2 . 2 2 . . . . . . 2 . . Power . | . . . . . . . . . . . . . . . . Propulsion 2 | . . . 1 . 1 . . . . . . . . . . Utility 6 | . . . 1 . 1 2 . . . . . . 2 . . Weapon . | . . . . . . . . . . . . . . . . Parts Attached 116 | . 11 4 17 1 28 26 . 1 1 . . 2 20 . 5 Power 12 | . 2 1 1 . 2 2 . . . . . . 3 . 1 Engine 9 | . 2 1 1 . 2 1 . . . . . . 2 . . Core 3 | . . . . . . 1 . . . . . . 1 . 1 Reactor . | . . . . . . . . . . . . . . . . Propulsion 35 | . 3 2 8 1 8 8 . . . . . 1 2 . 2 Treads 20 | . 3 . 8 1 8 . . . . . . . . . . Leg 2 | . . 2 . . . . . . . . . . . . . Wheel . | . . . . . . . . . . . . . . . . Hover . | . . . . . . . . . . . . . . . . Flight 13 | . . . . . . 8 . . . . . 1 2 . 2 Utility 50 | . 3 1 5 . 12 12 . 1 . . . 1 13 . 2 Device 14 | . 1 . 1 . 3 4 . . . . . . 4 . 1 Storage 6 | . 1 . 1 . 4 . . . . . . . . . . Processor 7 | . 1 . . . . 2 . . . . . . 3 . 1 Hackware 14 | . . . . . . 6 . 1 . . . 1 6 . . Protection 9 | . . 1 3 . 5 . . . . . . . . . . Artifact . | . . . . . . . . . . . . . . . . Weapon 19 | . 3 . 3 . 6 4 . . 1 . . . 2 . . Energy Gun 1 | . . . . . . 1 . . . . . . . . . Energy Cannon 1 | . 1 . . . . . . . . . . . . . . Ballistic Gun 10 | . 1 . 3 . 5 . . . 1 . . . . . . Ballistic Cannon 1 | . . . . . . . . . . . . . 1 . . Launcher 3 | . 1 . . . 1 1 . . . . . . . . . Special Weapon . | . . . . . . . . . . . . . . . . Impact Weapon 1 | . . . . . . 1 . . . . . . . . . Slashing Weapon . | . . . . . . . . . . . . . . . . Piercing Weapon . | . . . . . . . . . . . . . . . . Special Melee Weapon 2 | . . . . . . 1 . . . . . . 1 . . Unidentified Prototypes 5 | . 1 . . . 2 1 . . . . . . 1 . . Corrupted Parts 1 | . . . . . . . . . . . . . 1 . . System Corruption 9 | . . . . . . . . . . . . . 9 . . Parts Lost 29 | . 1 1 2 . 4 2 . . . . . 2 8 . 9 Power 5 | . . . . . . 1 . . . . . . 2 . 2 Propulsion 8 | . 1 1 1 . 2 . . . . . . 2 . . 1 Utility 12 | . . . 1 . 1 1 . . . . . . 5 . 4 Weapon 4 | . . . . . 1 . . . . . . . 1 . 2 Highest Loss Streak 6 | . 1 1 1 . 2 1 . . . . . 1 2 . 6 To Critical Strikes . | . . . . . . . . . . . . . . . . Average Backups 14 | . 9 16 19 19 23 7 5 5 5 5 5 5 4 5 4 Power 1 | . 1 2 3 2 2 . 1 1 1 1 1 1 . . . Propulsion 4 | . 5 6 7 6 6 1 1 1 . . . . . . . Utility 3 | . 1 2 3 4 7 2 1 1 1 2 2 2 . 2 2 Weapon 3 | . 1 4 5 6 5 1 1 1 1 1 2 1 2 1 1 Tool/Special . | . . . . . . . . . . . . . . . . Unused Backups 25 | . 6 . 4 . 6 5 . . . . . . 1 1 2 Power 6 | . 1 . 1 . 2 1 . . . . . . 1 . . Propulsion 1 | . . . . . 1 . . . . . . . . . . Utility 10 | . 3 . 1 . 1 3 . . . . . . . . 2 Weapon 8 | . 2 . 2 . 2 1 . . . . . . . 1 . Tool/Special . | . . . . . . . . . . . . . . . . Average Slot Usage (%) 97 | . 98 99 98 100 98 96 100 100 100 100 100 98 89 100 91 Engine 8 | . 14 14 11 11 9 2 . . . . . . 3 6 4 Core 1 | . . . . . . 4 7 7 7 7 7 7 2 . . Treads 19 | . 20 13 32 33 35 2 . . . . . . . . . Leg 2 | . 6 14 1 . . . . . . . . . . . . Flight 8 | . . . . . . 27 30 30 30 30 30 28 20 26 24 Device 7 | . 9 8 1 . 8 4 7 7 7 7 7 7 13 13 11 Storage 11 | . 14 14 18 22 17 1 . . . . . . . . . Processor 3 | . 3 . . . . 8 7 7 7 7 7 7 9 6 6 Hackware 9 | . . . . . . 27 30 30 30 30 30 30 25 33 31 Protection 5 | . . 5 11 11 9 . . . . . . . . . . Energy Gun 1 | . 1 . . . . 2 7 7 7 6 . 6 1 . . Energy Cannon 3 | . 12 14 1 . . . . . . . . . . . . Ballistic Gun 11 | . 13 14 20 22 17 1 . . . . . . . . . Impact Weapon 1 | . . . . . . 5 7 7 7 7 7 6 5 6 4 Peak Build Rating 66 | . 12 14 20 22 36 47 47 49 51 49 48 53 60 60 66 Average Rating 29 | . 10 12 18 21 30 38 47 47 49 48 48 51 50 59 58 On Entrance 35 | 6 6 12 13 20 22 36 47 47 49 49 49 48 48 60 60 Avg Prop Armor Cover (%) 6 | . . . 9 . . 2 . . . . . . . . . Naked Turns . | . . . . . . . . . . . . . . . . Heaviest Build 105 | 14 52 56 61 59 105 105 12 12 12 12 9 12 22 17 22 Greatest Support 83 | 20 40 40 60 60 83 83 20 20 20 20 20 21 31 31 33 Greatest Overweight (x) 5 | . 2 5 2 . 1 4 . . . . . . 1 . 1 Average Overweight (x) . | . . 1 . . . . . . . . . . . . . Largest Inventory Capacity 25 | . 20 20 20 20 25 25 5 5 5 5 5 5 5 5 5 Average Capacity 15 | . 15 20 20 20 24 7 5 5 5 5 5 5 5 5 5 Most Carried 25 | . 12 20 20 20 25 25 5 5 5 5 5 5 5 5 5 Average Carried 14 | . 9 16 19 19 23 6 5 5 5 5 5 5 4 4 4 Final Capacity 25 | 8 20 20 20 20 25 5 5 5 5 5 5 5 5 5 5 Final Carried 25 | 6 12 20 20 20 25 5 5 5 5 5 5 5 5 5 4 Class Distribution -------------------- 42% | Scavenger-Mutant 28% | Hacker-Sprinter 26% | Mutant Dominant Class ---------------- Mutant | -10/Materials Scavenger-Mutant | -10/Mines Scavenger-Mutant | -9/Materials Scavenger-Mutant | -9/Mines Scavenger-Mutant | -8/Materials Hacker-Sprinter | -7/Factory Hacker-Sprinter | -7/Waste Hacker-Sprinter | -7/Factory Hacker-Sprinter | -7/Lower Caves Hacker-Sprinter | -7/Lower Caves Hacker-Sprinter | -7/Data Miner Hacker-Sprinter | -6/Proximity Caves Hacker-Sprinter | -6/Factory Hacker-Sprinter | -6/Waste Hacker-Sprinter | -6/Factory Resources | -11 -10 -10 -9 -9 -8 -7 -7 -7 -7 -7 -7 -6 -6 -6 -6 ----------- Run | Yrd Mat Min Mat Min Mat Fac Was Fac Low Low Dat Pro Fac Was Fac Matter Collected 4581 | 180 354 94 1127 10 1598 217 . . 131 68 . 165 502 . 135 Remotely . | . . . . . . . . . . . . . . . . Salvage Created 6337 | . 616 318 1421 58 2461 287 . 21 26 . . 46 841 . 242 Parts 327 | . 31 25 97 3 148 9 . . . . . 5 9 . . Haulers Intercepted 12 | . 2 . 3 . 4 1 . . . . . . 2 . . Recyclers Shooed 13 | . 2 1 1 . 6 1 . . . . . . 2 . . Parts Field Recycled . | . . . . . . . . . . . . . . . . Retrieved Matter . | . . . . . . . . . . . . . . . . Parts Self-Destructed 10 | . . . . . . . . . . 5 . 5 . . . Prevented 2 | . . . . . . . . . . 2 . . . . . Parts Restored . | . . . . . . . . . . . . . . . . Kills | -11 -10 -10 -9 -9 -8 -7 -7 -7 -7 -7 -7 -6 -6 -6 -6 ------- Run | Yrd Mat Min Mat Min Mat Fac Was Fac Low Low Dat Pro Fac Was Fac Combat Hostiles Destroyed 110 | . 15 11 28 . 45 1 . . . . . 4 5 . 1 Melee 1 | . . . . . . . . . . . . . 1 . . Guns 67 | . 3 5 22 . 35 1 . . . . . 1 . . . Cannons 19 | . 7 6 6 . . . . . . . . . . . . AOE 21 | . 5 . . . 10 . . . . . . 3 3 . . Classes Destroyed 17 | . 7 3 2 . 3 1 . . . . . 1 . . . Worker 14 | . . . 6 . 4 1 . . . . . . 1 . 2 Builder 7 | . 1 . . . 2 2 . . . . . . 2 . . Tunneler 1 | . 1 . . . . . . . . . . . . . . Hauler 12 | . 2 . 3 . 4 1 . . . . . . 2 . . Recycler 12 | . . 1 . 1 4 2 . . . . . . 3 . 1 Mechanic 3 | . . . 1 . 1 . . . . . . . 1 . . Operator 8 | . 1 . 5 . 2 . . . . . . . . . . Drone 2 | . . . . . . . . . . . . 2 . . . Watcher 12 | . 1 . 3 . 4 . . 1 . . . . 2 . 1 Swarmer 36 | . 3 5 10 . 14 . . . . . . 1 3 . . Grunt 49 | . 12 2 13 . 22 . . . . . . . . . . Brawler 1 | . . . . . 1 . . . . . . . . . . Duelist 1 | . . . . . 1 . . . . . . . . . . Sentry 14 | . . 2 5 . 7 . . . . . . . . . . Demolisher 2 | . . 2 . . . . . . . . . . . . . Programmer 5 | . . . . . . 1 . . . . . 1 2 . 1 Heavy 1 | . . . . . 1 . . . . . . . . . . Decomposer 2 | . . . . . . . . . 2 . . . . . . Best Kill Streak 13 | . 7 3 13 1 10 2 . 1 . . . 1 4 . 4 Combat Bots Only 9 | . 5 3 4 . 9 1 . . . . . 1 3 . 1 Max Kills in Single Turn 3 | . 3 1 2 1 3 2 . 1 1 . . 1 2 . 1 Gunslinging 1 | . . . . . 1 . . . . . . . . . . Exploded 3 | . 3 . . . 3 . . . . . . 1 1 . . Melee 1 | . . . . . . . . . . . . . 1 . . Uniques/NPCs Destroyed . | . . . . . . . . . . . . . . . . Combat | -11 -10 -10 -9 -9 -8 -7 -7 -7 -7 -7 -7 -6 -6 -6 -6 -------- Run | Yrd Mat Min Mat Min Mat Fac Was Fac Low Low Dat Pro Fac Was Fac Hostile Shots Fired 808 | . 61 23 132 . 203 42 . 2 9 22 . 31 91 . 192 Missed 313 | . 19 4 35 . 64 17 . 1 7 13 . 16 46 . 91 Hits 495 | . 42 19 97 . 139 25 . 1 2 9 . 15 45 . 101 Projectile 495 | . 42 19 97 . 139 25 . 1 2 9 . 15 45 . 101 AOE 7 | . . 6 . . . . . . . . . . . . 1 Critical Strikes 14 | . . . 1 . 5 1 . . . 2 . . 3 . 2 Part Disruptions 1 | . . . . . . . . . . . . 1 . . . Damage Taken 6797 | . 579 364 1078 . 2327 346 . 14 12 78 . 247 678 . 1074 Core 1542 | . 94 60 90 . 148 158 . 14 . 32 . 81 289 . 576 Absorbed by Shields 102 | . . . . . . . . . . . . . . . 102 Regen/Repaired (Parts) 1041 | . 141 . 259 . 465 . . . . . . . 176 . . Core Remaining (%) 69 | 100 . 38 . 77 73 . . . . . . 59 . . . Volleys Fired 387 | . 62 19 116 . 161 7 . 1 . 2 . 10 9 . . Largest 2 | . 2 2 2 . 2 1 . 1 . 1 . 1 1 . . Hottest 88 | . 88 88 88 . 50 80 . 80 . 30 . 80 40 . . Shots Fired 717 | . 102 38 232 . 312 7 . 3 . 3 . 11 9 . . Gun 612 | . 60 19 213 . 303 5 . 3 . 1 . 8 . . . Cannon 78 | . 37 19 19 . . . . . . . . . 3 . . Launcher 27 | . 5 . . . 9 2 . . . 2 . 3 6 . . Special . | . . . . . . . . . . . . . . . . Kinetic 595 | . 57 19 213 . 303 . . . . . . . 3 . . Thermal 95 | . 40 19 19 . . 5 . 3 . 1 . 8 . . . Explosive 27 | . 5 . . . 9 2 . . . 2 . 3 6 . . Electromagnetic . | . . . . . . . . . . . . . . . . Robot Hit Streak 19 | . 12 5 19 . 13 12 . 2 . . . 5 2 . . Robot Miss Streak 5 | . 5 3 4 . 4 2 . 3 . . . 2 2 . . Penetration Max . | . . . . . . . . . . . . . . . . Secondary Targets 10 | . . . 4 . 6 . . . . . . . . . . Max Gunslinging Chain 1 | . . . 1 . 1 . . . . . . . . . . Shots Hit Robots 532 | . 68 20 157 . 213 12 . 3 2 . . 9 35 . 13 Core Hits 249 | . 34 17 58 1 112 7 . 1 . . . 6 13 . . Critical Kills 2 | . . . 1 . 1 . . . . . . . . . . Critical Parts Destroyed 11 | . . . . . 2 1 . . 1 . . . 4 . 3 Critical Strikes 13 | . . . 1 . 3 1 . . 1 . . . 4 . 3 Destroy 4 | . . . 1 . 3 . . . . . . . . . . Smash 9 | . . . . . . 1 . . 1 . . . 4 . 3 Melee Attacks 134 | . . . . . . 16 . 10 6 11 . . 62 . 29 Impact 127 | . . . . . . 14 . 10 6 11 . . 59 . 27 Slashing . | . . . . . . . . . . . . . . . . Piercing . | . . . . . . . . . . . . . . . . Sneak Attacks 25 | . . . . . . 6 . . 2 . . . 13 . 4 Combat Hostiles . | . . . . . . . . . . . . . . . . Follow-up Attacks . | . . . . . . . . . . . . . . . . Damage Inflicted 14333 | . 1626 373 2700 106 4626 682 . 109 184 . . 340 2718 . 869 Guns 6817 | . 500 134 2148 . 3696 130 . 35 . . . 174 . . . Cannons 1179 | . 599 209 371 . . . . . . . . . . . . Explosions 2273 | . 500 . . . 894 183 . . . . . 166 530 . . Melee 3684 | . . . . . . 369 . 74 184 . . . 2188 . 869 Ramming 380 | . 27 30 181 106 36 . . . . . . . . . . Kinetic 6440 | . 462 134 2148 . 3696 . . . . . . . . . . Thermal 1556 | . 637 209 371 . . 130 . 35 . . . 174 . . . Explosive 2273 | . 500 . . . 894 183 . . . . . 166 530 . . Electromagnetic . | . . . . . . . . . . . . . . . . Impact 3684 | . . . . . . 369 . 74 184 . . . 2188 . 869 Slashing . | . . . . . . . . . . . . . . . . Piercing . | . . . . . . . . . . . . . . . . Highest Corruption 26 | . . . . . . 1 8 8 8 8 8 12 13 20 26 Average Corruption 10 | . . . . . . 1 2 8 8 8 8 11 9 15 21 Corruption Purged . | . . . . . . . . . . . . . . . . Corruption Blocked . | . . . . . . . . . . . . . . . . Effects 141 | . . . . . . 4 . 8 9 19 1 38 30 2 30 Message Errors 27 | . . . . . . 1 . . 3 6 . 5 10 . 2 Matter Fused 36 | . . . . . . 2 . 1 2 4 1 8 9 2 7 Heat Flow Errors 21 | . . . . . . . . 1 1 5 . 9 1 . 4 Energy Discharges 19 | . . . . . . . . 2 1 1 . 6 7 . 2 Parts Rejected 1 | . . . . . . . . . . . . . . . 1 Data Loss (minor) 13 | . . . . . . 1 . 1 1 1 . 3 2 . 4 Data Loss (major) 7 | . . . . . . . . 1 1 . . 3 . . 2 Misfires 4 | . . . . . . . . 2 . 1 . 1 . . . Alerts 5 | . . . . . . . . . . 1 . 2 . . 2 Misdirections 8 | . . . . . . . . . . . . 1 1 . 6 Overload Shots . | . . . . . . . . . . . . . . . . Overflow Damage 1634 | . . . 15 2 38 207 . 52 168 . . 6 741 . 405 Projectiles 2 | . . . 2 . . . . . . . . . . . . Explosions 63 | . . . . . 38 14 . . . . . 6 5 . . Melee 1569 | . . . 13 2 . 193 . 52 168 . . . 736 . 405 Knockbacks 25 | . . . 2 . . 2 . . . . . . 12 . 9 Impact 25 | . . . 2 . . 2 . . . . . . 12 . 9 Kinetic . | . . . . . . . . . . . . . . . . Secondary . | . . . . . . . . . . . . . . . . Self-Inflicted Damage 231 | . 49 . . . 52 76 . . . . . 36 18 . . Shots 7 | . 1 . . . 2 2 . . . . . 1 1 . . Rammed 42 | . 10 5 16 7 4 . . . . . . . . . . Targets Rammed 44 | . 10 6 16 7 5 . . . . . . . . . . Kicked 1 | . . 1 . . . . . . . . . . . . . Crushed 1 | . . . . . 1 . . . . . . . . . . Highest Temperature 374 | . 132 117 217 . 29 102 . 111 126 211 . 374 171 . 248 Average Temperature 62 | . 29 48 40 . 12 46 . 40 67 72 . 127 90 . 101 Received Heat Transfer 1826 | . 270 24 315 . 855 45 . . . 81 . 6 69 . 161 Effects 5 | . . . 3 . . . . . . . . . . . 2 Interference 5 | . . . 3 . . . . . . . . . . . 2 Siege Activations . | . . . . . . . . . . . . . . . . Martial Activations . | . . . . . . . . . . . . . . . . Shielding Activations . | . . . . . . . . . . . . . . . . Robots Disrupted . | . . . . . . . . . . . . . . . . Combat Hostiles . | . . . . . . . . . . . . . . . . Robots Corrupted 20 | . . . 2 . . 3 . 1 . . . . 9 . 5 Combat Hostiles 2 | . . . . . . . . . . . . . 1 . 1 Parts Fried 21 | . . . 1 . . 3 . 2 1 . . . 9 . 5 Impact Corruptions 62 | . . . 3 1 . 5 . 2 6 . . . 27 . 18 Robots Melted . | . . . . . . . . . . . . . . . . Combat Hostiles . | . . . . . . . . . . . . . . . . Parts Melted 6 | . 1 . 1 . . 3 . . . . . . . . 1 Heat Transferred 2796 | . 1147 370 629 . . 250 . 75 . . . 325 . . . Parts Sabotaged . | . . . . . . . . . . . . . . . . Parts Stolen . | . . . . . . . . . . . . . . . . Parts Stripped . | . . . . . . . . . . . . . . . . Power Chain Reactions . | . . . . . . . . . . . . . . . . Alert | -11 -10 -10 -9 -9 -8 -7 -7 -7 -7 -7 -7 -6 -6 -6 -6 ------- Run | Yrd Mat Min Mat Min Mat Fac Was Fac Low Low Dat Pro Fac Was Fac Maximum Alert Level 2 | . . . 1 . 2 2 . . . . . . . . . Low Security (%) 68 | . 100 100 63 100 21 . 100 100 . . . . 100 100 100 Level 1 21 | . . . 36 . 38 97 . . . . . . . . . Level 2 9 | . . . . . 39 2 . . . . . . . . . Level 3 . | . . . . . . . . . . . . . . . . Level 4 . | . . . . . . . . . . . . . . . . Level 5 . | . . . . . . . . . . . . . . . . High Security . | . . . . . . . . . . . . . . . . Max Security . | . . . . . . . . . . . . . . . . Sterilizations 1 | . . . . . 1 . . . . . . . . . . Peak Influence 690 | . 169 106 250 89 690 410 143 106 . . . . 199 45 82 Initial 312 | . . 19 17 89 . 312 143 100 . . . . 199 45 24 Average 162 | . 86 22 147 9 353 325 143 74 . . . . 117 43 9 Influence Increases 5288 | . 528 265 980 5 1602 430 . 52 15 180 . 255 746 . 230 Destroy 0b10 Robot/C 2300 | . 300 220 560 . 1000 20 . . . . . 40 140 . 20 Destroy 0b10 Robot/NC 355 | . 30 5 90 5 105 30 . 5 . . . 10 55 . 20 Destroy Leader 628 | . 86 40 152 . 256 12 . 2 . . . 10 58 . 12 Allied During Kill 53 | . . . . . 43 . . . . . . . 10 . . Successful Hack 243 | . 48 . 24 . 14 58 . 6 . . . . 74 . 19 Select Force Hacks 60 | . . . 30 . 30 . . . . . . . . . . Disable Machine 195 | . 15 . . . 75 60 . . . . . . 45 . . Destroy Structure 164 | . 34 . 4 . 49 25 . 9 . . . . 34 . 9 Advance Influence 150 | . . . . . . . . . . . . . 150 . . Partial Spotted 165 | . . . . . . 75 . 15 . . . . 45 . 30 Lose Combat Pursuer 975 | . 15 . 120 . 30 150 . 15 15 180 . 195 135 . 120 Influence Decreases 5226 | . 476 271 796 235 914 708 267 123 87 167 13 176 696 94 203 Entered New Map 1054 | . . 33 29 141 . 376 267 43 27 . 13 . 30 84 11 Time Decay 3484 | . 466 238 521 94 684 302 . 80 60 167 . 166 546 10 150 Lost Part 222 | . 10 . 20 . 40 20 . . . . . 10 80 . 42 Lost Ally 90 | . . . . . 40 10 . . . . . . 40 . . Purge Threat 376 | . . . 226 . 150 . . . . . . . . . . Squads Dispatched 44 | . 4 . 8 . 10 7 . 3 . . . . 8 . 4 Investigation 19 | . 2 . 3 . 4 3 . 1 . . . . 4 . 2 Extermination 8 | . . . . . . 2 . . . . . . 4 . 2 Reinforcement 14 | . 2 . 5 . 4 1 . 2 . . . . . . . Assault . | . . . . . . . . . . . . . . . . Garrison 3 | . . . . . 2 1 . . . . . . . . . Intercept . | . . . . . . . . . . . . . . . . Searches Triggered . | . . . . . . . . . . . . . . . . Data Miner Redirects 2 | . . . . . . . . . . . . . . . 2 Construction Impeded 1 | . . . . . . 1 . . . . . . . . . Haulers Reinforced . | . . . . . . . . . . . . . . . . Active Scanning Responses . | . . . . . . . . . . . . . . . . Cargo Convoy Interrupts . | . . . . . . . . . . . . . . . . Stealth | -11 -10 -10 -9 -9 -8 -7 -7 -7 -7 -7 -7 -6 -6 -6 -6 --------- Run | Yrd Mat Min Mat Min Mat Fac Was Fac Low Low Dat Pro Fac Was Fac Distress Signals 13 | . 1 . 2 . 6 2 . . . . . 1 1 . . Communications Jammed 2 | . . . . . . . . . . . . . 2 . . Distress Signals 2 | . . . . . . . . . . . . . 2 . . Times Spotted 278 | . 35 10 51 . 74 16 5 8 1 14 . 17 26 2 19 Peak Tracking Total 9 | . 4 3 5 . 8 5 5 4 1 5 . 6 7 2 9 Tactical Retreats 34 | . 1 . 4 . 2 6 . 1 1 6 . 5 4 . 4 Traps | -11 -10 -10 -9 -9 -8 -7 -7 -7 -7 -7 -7 -6 -6 -6 -6 ------- Run | Yrd Mat Min Mat Min Mat Fac Was Fac Low Low Dat Pro Fac Was Fac Traps Triggered 11 | . 3 . . . . 2 . 1 . . . . 4 . 1 Indirectly . | . . . . . . . . . . . . . . . . Trap Hack Attempts . | . . . . . . . . . . . . . . . . Triggered . | . . . . . . . . . . . . . . . . Disarmed . | . . . . . . . . . . . . . . . . Reprogrammed . | . . . . . . . . . . . . . . . . Reused . | . . . . . . . . . . . . . . . . Traps Extracted . | . . . . . . . . . . . . . . . . Installed . | . . . . . . . . . . . . . . . . Triggered . | . . . . . . . . . . . . . . . . Machines | -11 -10 -10 -9 -9 -8 -7 -7 -7 -7 -7 -7 -6 -6 -6 -6 ---------- Run | Yrd Mat Min Mat Min Mat Fac Was Fac Low Low Dat Pro Fac Was Fac Machines Disabled 14 | . 1 1 . . 5 4 . . . . . . 3 . . Max in Single Turn 1 | . 1 1 . . 1 1 . . . . . . 1 . . Garrison Access 2 | . . . . . 1 . . . . . . . 1 . . Machines Repaired . | . . . . . . . . . . . . . . . . Machines Dismantled . | . . . . . . . . . . . . . . . . Machines Sabotaged . | . . . . . . . . . . . . . . . . Overloaded Fab Kills . | . . . . . . . . . . . . . . . . Hacking | -11 -10 -10 -9 -9 -8 -7 -7 -7 -7 -7 -7 -6 -6 -6 -6 --------- Run | Yrd Mat Min Mat Min Mat Fac Was Fac Low Low Dat Pro Fac Was Fac Machines Accessed 77 | . 7 . 12 2 12 13 . 2 1 . 2 . 19 . 7 Terminals 40 | . 6 . 7 1 8 5 . 1 . . . . 8 . 4 Fabricators 10 | . . . . . . 5 . . . . . . 3 . 2 Repair Stations 10 | . 1 . 1 . 2 2 . . . . . . 4 . . Recycling Units 6 | . . . 2 . . . . 1 . . . . 2 . 1 Scanalyzers 5 | . . . 2 . 1 1 . . . . . . 1 . . Garrison Access 2 | . . . . . 1 . . . . . . . 1 . . Total Hacks 266 | . 37 . 47 2 47 34 . 5 1 . 18 . 49 . 26 Successful 187 | . 16 . 38 2 30 22 . 3 1 . 18 . 37 . 20 Failed 79 | . 21 . 9 . 17 12 . 2 . . . . 12 . 6 Catastrophic 11 | . 3 . 1 . 4 . . . . . . . 2 . 1 Database Lockouts . | . . . . . . . . . . . . . . . . Manual 114 | . 30 . 17 . 21 14 . 2 . . . . 14 . 16 Terminals 127 | . 33 . 24 1 23 11 . 4 . . . . 16 . 15 Fabricators 36 | . . . . . . 15 . . . . . . 13 . 8 Repair Stations 46 | . 4 . 7 . 17 5 . . . . . . 13 . . Recycling Units 12 | . . . 4 . . . . 1 . . . . 4 . 3 Scanalyzers 22 | . . . 12 . 5 3 . . . . . . 2 . . Garrison Access 3 | . . . . . 2 . . . . . . . 1 . . Terminal Hacks 59 | . 9 . 10 2 5 2 . . 1 . 18 . 6 . 6 Part Schematic 11 | . 2 . . . . . . . . . 8 . 1 . . Robot Schematic 7 | . . . . . . . . . . . 7 . . . . Robot Analysis 9 | . 4 . 2 . 1 . . . . . . . 1 . 1 Prototype ID Bank 7 | . 3 . 1 . . . . . . . 3 . . . . Open Door 2 | . . . . 1 . . . . 1 . . . . . . Branch Access Points 2 | . . . . . 1 . . . . . . . . . 1 Machine Index 2 | . . . . . . . . . . . . . 1 . 1 Repair Station Index 1 | . . . 1 . . . . . . . . . . . . Alert Level 7 | . . . 3 . 2 1 . . . . . . 1 . . Unreport Threat 3 | . . . 2 . 1 . . . . . . . . . . Dispatch Records 1 | . . . . . . . . . . . . . . . 1 Recall Investigation 2 | . . . . . . 1 . . . . . . . . 1 Recall Extermination 1 | . . . . . . . . . . . . . 1 . . Hauler Manifests 1 | . . . 1 . . . . . . . . . . . . Registered Prototypes 1 | . . . . . . . . . . . . . 1 . . Zone Layout 2 | . . . . 1 . . . . . . . . . . 1 Fabricator Hacks 21 | . . . . . . 8 . . . . . . 8 . 5 Network Status 2 | . . . . . . 1 . . . . . . . . 1 Load Schematic 10 | . . . . . . 4 . . . . . . 4 . 2 Build 9 | . . . . . . 3 . . . . . . 4 . 2 Repair Station Hacks 38 | . 4 . 7 . 15 2 . . . . . . 10 . . Scan Component 19 | . 2 . 4 . 8 . . . . . . . 5 . . Repair 17 | . 2 . 3 . 7 . . . . . . . 5 . . Refit 2 | . . . . . . 2 . . . . . . . . . Recycling Unit Hacks 4 | . . . 2 . . . . 1 . . . . . . 1 Retrieve Components 4 | . . . 2 . . . . 1 . . . . . . 1 Scanalyzer 18 | . . . 11 . 3 2 . . . . . . 2 . . Insert Component 8 | . . . 5 . 1 1 . . . . . . 1 . . Analyze 7 | . . . 6 . . 1 . . . . . . . . . Retrieve Study 3 | . . . . . 2 . . . . . . . 1 . . Garrison Access Hacks 2 | . . . . . 1 . . . . . . . 1 . . Seal Access 2 | . . . . . 1 . . . . . . . 1 . . Unauthorized Hacks 45 | . 3 . 8 . 6 8 . 2 . . . . 10 . 8 Terminals 25 | . 3 . 5 . 5 3 . 2 . . . . 2 . 5 Assimilate 1 | . . . . . . 1 . . . . . . . . . Botnet 21 | . 3 . 5 . 5 2 . 1 . . . . 2 . 3 Operators 1 | . . . . . . . . . . . . . . . 1 Skim 2 | . . . . . . . . 1 . . . . . . 1 Fabricators 10 | . . . . . . 5 . . . . . . 4 . 1 Report 1 | . . . . . . 1 . . . . . . . . . Prioritize 3 | . . . . . . . . . . . . . 2 . 1 Liberate 2 | . . . . . . 1 . . . . . . 1 . . Haulers 1 | . . . . . . 1 . . . . . . . . . Recompile 3 | . . . . . . 2 . . . . . . 1 . . Repair Stations . | . . . . . . . . . . . . . . . . Recycling Units 8 | . . . 2 . . . . . . . . . 4 . 2 Recyclers 4 | . . . 1 . . . . . . . . . 2 . 1 Mask 4 | . . . 1 . . . . . . . . . 2 . 1 Scanalyzers 2 | . . . 1 . 1 . . . . . . . . . . Extract 2 | . . . 1 . 1 . . . . . . . . . . Garrison Access . | . . . . . . . . . . . . . . . . Data Cores Recovered . | . . . . . . . . . . . . . . . . Used . | . . . . . . . . . . . . . . . . Hacking Detections 66 | . 7 . 10 1 11 12 . 2 . . . . 17 . 6 Full Trace Events 12 | . . . 2 . 4 1 . . . . . . 3 . 2 Feedback Events 2 | . . . . . . . . . . . . . 2 . . Hackware Fried 2 | . . . . . . . . . . . . . 2 . . Feedback Blocked . | . . . . . . . . . . . . . . . . Robot Schematics Acquired 7 | . . . . . . . . . . . 7 . . . . Robots Built 2 | . . . . . . . . . . . . . 2 . . Authchips . | . . . . . . . . . . . . . . . . Time 152 | . . . . . . . . . . . . . 152 . . Total Robot Build Rating 10 | . . . . . . . . . . . . . 10 . . Part Schematics Acquired 22 | . 2 . 6 . 4 1 . . . . 8 . 1 . . Parts Built 8 | . . . . . . 3 . . . . . . 3 . 2 Authchips 4 | . . . . . . 2 . . . . . . 2 . . Time 436 | . . . . . . 134 . . . . . . 188 . 114 Total Part Build Rating 32 | . . . . . . 9 . . . . . . 13 . 10 Part Studies Acquired 3 | . . . . . 2 . . . . . . . 1 . . Parts Repaired 17 | . 2 . 3 . 7 . . . . . . . 5 . . Time 584 | . 77 . 108 . 228 . . . . . . . 171 . . Parts Recycled . | . . . . . . . . . . . . . . . . Recycled Matter . | . . . . . . . . . . . . . . . . Retrieved Matter . | . . . . . . . . . . . . . . . . Retrieved Components 23 | . . . 19 . . . . 1 . . . . . . 3 Parts Scanalyzed 6 | . . . 5 . . 1 . . . . . . . . . Part Schematics Acquired 6 | . . . 5 . . 1 . . . . . . . . . Parts Damaged . | . . . . . . . . . . . . . . . . Bothacking | -11 -10 -10 -9 -9 -8 -7 -7 -7 -7 -7 -7 -6 -6 -6 -6 ------------ Run | Yrd Mat Min Mat Min Mat Fac Was Fac Low Low Dat Pro Fac Was Fac Used RIF Installer . | . . . . . . . . . . . . . . . . Robots Hacked 4 | . . . . . . 2 . . . . . . 2 . . Non-combat 4 | . . . . . . 2 . . . . . . 2 . . Combat . | . . . . . . . . . . . . . . . . Robot Hacks Applied 4 | . . . . . . 2 . . . . . . 2 . . no_distress 1 | . . . . . . 1 . . . . . . . . . find_chute 3 | . . . . . . 1 . . . . . . 2 . . Relay Couplers Released 3 | . . . . . . 3 . . . . . . . . . Programmers 3 | . . . . . . 3 . . . . . . . . . Fabnet Peak Effective % . | . . . . . . . . . . . . . . . . Robots Rewired . | . . . . . . . . . . . . . . . . Allies Hacked . | . . . . . . . . . . . . . . . . Hacks Repelled . | . . . . . . . . . . . . . . . . Allies | -11 -10 -10 -9 -9 -8 -7 -7 -7 -7 -7 -7 -6 -6 -6 -6 -------- Run | Yrd Mat Min Mat Min Mat Fac Was Fac Low Low Dat Pro Fac Was Fac Total Allies 6 | . . . . 3 . 1 . . . . . . 2 . . Largest Group 3 | . . . . 3 3 1 . . . . . . 2 . . Highest-Rated Group 82 | . . . . 40 40 26 . . . . . . 82 . . Highest-Rated Ally 41 | . . . . 16 16 26 . . . . . . 41 . . Total Orders . | . . . . . . . . . . . . . . . . Ally Attacks 36 | . . . . . 28 . . . . . . . 8 . . Total Damage 534 | . . . . . 314 . . . . . . . 220 . . Kills 7 | . . . . . 5 . . . . . . . 2 . . Allies Corrupted . | . . . . . . . . . . . . . . . . Allies Melted . | . . . . . . . . . . . . . . . . Intel | -11 -10 -10 -9 -9 -8 -7 -7 -7 -7 -7 -7 -6 -6 -6 -6 ------- Run | Yrd Mat Min Mat Min Mat Fac Was Fac Low Low Dat Pro Fac Was Fac Active Infowar (turns) 4442 | . . . . . . 236 19 177 309 671 21 927 1547 22 513 Sensors 4440 | . . . . . . 234 19 177 309 671 21 927 1547 22 513 Triangulation 301 | . . . . . . . . . . . . . 301 . . Jamming 451 | . . . . . . 2 . . . . . . 449 . . Robot Analysis Total 9 | . 4 . 2 . 1 . . . . . . . 1 . 1 Derelict Logs Recovered 6 | . . 1 . 2 . . . . . 2 . 1 . . . Drone Launches . | . . . . . . . . . . . . . . . . Drone Recoveries . | . . . . . . . . . . . . . . . . Exploration | -11 -10 -10 -9 -9 -8 -7 -7 -7 -7 -7 -7 -6 -6 -6 -6 ------------- Run | Yrd Mat Min Mat Min Mat Fac Was Fac Low Low Dat Pro Fac Was Fac Turns Passed 15828 | . 2233 1530 2740 945 3373 676 19 177 309 671 21 927 1569 22 616 Spaces Moved 14558 | 1 875 550 1217 579 1264 1456 72 544 1090 1307 74 1701 2549 71 1208 Core . | . . . . . . . . . . . . . . . . Treads 3983 | . 640 265 1217 579 1264 18 . . . . . . . . . Legs 521 | 1 235 285 . . . . . . . . . . . . . Wheels . | . . . . . . . . . . . . . . . . Hover . | . . . . . . . . . . . . . . . . Flight 10054 | . . . . . . 1438 72 544 1090 1307 74 1701 2549 71 1208 Fastest Speed 26 | 120 120 240 160 160 160 26 26 26 26 26 26 26 27 28 28 Average Speed 79 | 120 196 252 164 160 211 30 26 26 26 26 26 27 29 28 31 Slowest Speed 470 | 120 320 470 320 160 240 347 26 26 26 26 26 29 99 28 99 Overloaded Moves . | . . . . . . . . . . . . . . . . Propulsion Burnouts . | . . . . . . . . . . . . . . . . Robots Hopped 71 | . . . . . . 23 . 12 . 1 . . 28 . 7 Potential Cave-ins . | . . . . . . . . . . . . . . . . Cave-ins Triggered . | . . . . . . . . . . . . . . . . Exploration Rate (%) 70 | 3 99 98 96 97 92 34 88 15 99 92 68 99 45 73 25 Regions Visited 15 Branch Regions 6 Pre-discovered Areas 3 | . . 1 . 1 . . . . . 1 . . . . . Known Exits Taken 5 | . . . . . . . . 1 1 1 1 1 . . . Unknown Exits Taken 6 | 1 1 1 1 1 1 . . . . . . . . . . Scrap Searched 12 | . . 1 . 2 . . . . 4 2 . 3 . . . Spaces Dug 93 | . 9 . . . 19 5 . 9 4 11 . 9 18 . 9 Terrain Destroyed 223 | . 32 . . . 44 24 . 9 4 31 . 33 37 . 9 Melee 54 | . . . . . . 5 . 9 4 11 . . 16 . 9 Projectile 3 | . . . . . . . . . . . . . 3 . . AOE 166 | . 32 . . . 44 19 . . . 20 . 33 18 . . Terrain Rammed . | . . . . . . . . . . . . . . . . Walls Destroyed . | . . . . . . . . . . . . . . . . Machines Disabled . | . . . . . . . . . . . . . . . . Actions | -11 -10 -10 -9 -9 -8 -7 -7 -7 -7 -7 -7 -6 -6 -6 -6 --------- Run | Yrd Mat Min Mat Min Mat Fac Was Fac Low Low Dat Pro Fac Was Fac Total 17883 | . 1272 643 1756 594 1734 1642 71 550 1105 1616 74 2142 3222 72 1390 Wait 2488 | . 293 56 356 5 231 117 . 7 6 296 . 417 571 . 133 Move 14409 | . 874 549 1216 578 1263 1411 71 519 1089 1304 73 1700 2498 70 1194 Hop 65 | . . . . . . 22 . 12 . 1 . . 23 . 7 Pick Up 63 | . 11 8 11 1 16 7 . . 1 . . . 7 1 . Fast Attach 41 | . 4 1 4 . 7 1 . . . . . 3 17 . 4 Attach 29 | . 2 . 3 . 3 14 . . . . . . 6 . 1 Detach 8 | . . . . . . 4 . . . . . . 3 . 1 Swap 106 | . 8 3 15 1 26 17 . 1 2 2 1 10 16 . 4 Drop 88 | . 8 1 19 2 22 26 . . 1 . . 2 4 1 2 Fire 387 | . 62 19 116 . 161 7 . 1 . 2 . 10 9 . . Melee 134 | . . . . . . 16 . 10 6 11 . . 62 . 29 Ram . | . . . . . . . . . . . . . . . . Kick 1 | . . 1 . . . . . . . . . . . . . Crush 43 | . 10 5 16 7 5 . . . . . . . . . . Escape Stasis 21 | . . . . . . . . . . . . . 6 . 15 Rewire . | . . . . . . . . . . . . . . . . Trap . | . . . . . . . . . . . . . . . . Miscellaneous . | . . . . . . . . . . . . . . . . Route ------- -11/Scrapyard -10/Materials (discovered 5 exits: *Mat x3 / [*Min] / [*Sub]) -10/Mines (discovered 2 exits: *Mat x2) -9/Materials (discovered 6 exits: *Mat x3 / *Min / [*Sto x2]) -9/Mines (discovered 3 exits: *Mat x2 / [*Exi]) -8/Materials (discovered 3 exits: *Fac x3) -7/Factory -7/Waste -7/Factory -7/Lower Caves -7/Lower Caves (discovered 2 exits: *Fac / *Dat) -7/Data Miner -6/Proximity Caves -6/Factory (discovered 3 exits: *Fac x2 / *Low) -6/Waste -6/Factory (discovered 2 exits: Low x2) History --------- Turn | Location | Event 1 | -11/Scrapyard | Discovered new exit (range 0) 1 | -11/Scrapyard | Entered Materials 314 | -10/Materials | Build established: Mutant 619 | -10/Materials | Discovered new exit (range 14) 697 | -10/Materials | Discovered new exit (range 11) 1038 | -10/Materials | Repaired Assault Rifle 1090 | -10/Materials | Repaired Adv. Beam Cannon 1133 | -10/Materials | Discovered new exit (range 12) 1135 | -10/Materials | Discovered new exit (range 5) 1810 | -10/Materials | Discovered new exit (range 15) 2234 | -10/Materials | Entered Mines 2253 | -10/Mines | Met a Derelict bent on vengeance 2279 | -10/Mines | Assembled infested the area 2284 | -10/Mines | Assisted by a Guerilla fighting off Assembled 2911 | -10/Mines | Discovered new exit (range 11) 2940 | -10/Mines | Core integrity fell below 50% 3273 | -10/Mines | Build established: Scavenger-Mutant 3330 | -10/Mines | Discovered new exit (range 15) 3764 | -10/Mines | Entered Materials 3764 | -9/Materials | Evolved 2 slots: Propulsion x1, Utility x1 4824 | -9/Materials | Discovered new exit (range 8) 4882 | -9/Materials | Discovered new exit (range 16) 5188 | -9/Materials | Discovered new exit (range 11) 5327 | -9/Materials | Discovered new exit (range 15) 5458 | -9/Materials | Discovered new exit (range 4) 5756 | -9/Materials | Repaired Hrd. Light Armor Plating 5796 | -9/Materials | Repaired Com. Matter Pod 5835 | -9/Materials | Repaired Minigun 5845 | -9/Materials | Discovered new exit (range 16) 6504 | -9/Materials | Entered Mines 6505 | -9/Mines | YI-UF0 nonchalantly dropped a Grenade Launcher on the ground 6651 | -9/Mines | Found the Drone Emporium 6662 | -9/Mines | Found Prototype Device 6766 | -9/Mines | Learned Materials security intel 6767 | -9/Mines | Learned location of Storage (-9) 6866 | -9/Mines | Discovered new exit (range 10) 6881 | -9/Mines | Learned 2 Materials zone layouts 6980 | -9/Mines | Deemed a non-threat by the Exiles lab entrance 6982 | -9/Mines | Discovered new exit (range 5) 7188 | -9/Mines | Discovered new exit (range 10) 7332 | -9/Mines | Assisted by bots powering up and referring to "LRC-V3" 7449 | -9/Mines | Entered Materials 7449 | -8/Materials | Accompanied by 3 allies 7449 | -8/Materials | Evolved 2 slots: Propulsion x1, Utility x1 7864 | -8/Materials | Identified Bomb Drone Bay 7883 | -8/Materials | Discovered new exit (range 4) 8122 | -8/Materials | Garrison activated, responded to threat 8157 | -8/Materials | Destroyed 9 combat bots 8398 | -8/Materials | Discovered new exit (range 14) 9065 | -8/Materials | Repaired Minigun 9092 | -8/Materials | Repaired Lgt. Treads+ 9120 | -8/Materials | Repaired Lgt. Treads+ 9147 | -8/Materials | Repaired Lgt. Treads+ 9175 | -8/Materials | Repaired Lgt. Treads+ 9201 | -8/Materials | Repaired Lgt. Treads+ 9271 | -8/Materials | Repaired Enh. Autogun 9942 | -8/Materials | Build established: Mutant 10125 | -8/Materials | Discovered new exit (range 16) 10812 | -8/Materials | Sterilization system engaged 10812 | -8/Materials | Non-combat units ordered to evacuate 10822 | -8/Materials | Entered Factory 10822 | -7/Factory | Evolved 2 slots: Utility x2 10990 | -7/Factory | Discovered new exit (range 10) 11078 | -7/Factory | Identified exit to Lower Caves 11164 | -7/Factory | Fabricated Imp. VTOL Module (x1) 11164 | -7/Factory | Build established: Hacker-Sprinter 11403 | -7/Factory | Fabricated Imp. VTOL Module (x1) 11459 | -7/Factory | Fabricated Imp. VTOL Module (x1) 11468 | -7/Factory | Garrison activated, responded to threat 11498 | -7/Factory | Manually triggered Chute Trap 11498 | -7/Factory | Sucked down chute 11498 | -7/Factory | Entered Waste 11504 | -7/Waste | Spotted C-40 Crusher 11504 | -7/Waste | Spotted C-40 Crusher 11506 | -7/Waste | Spotted C-40 Crusher 11506 | -7/Waste | Spotted C-40 Crusher 11512 | -7/Waste | Spotted C-40 Crusher 11513 | -7/Waste | EMP discharged 11513 | -7/Waste | Spotted C-40 Crusher 11513 | -7/Waste | Discovered new exit (range 16) 11517 | -7/Waste | Identified exit to Factory 11517 | -7/Waste | Entered Factory 11630 | -7/Factory | Discovered exit to Lower Caves (range 4) 11694 | -7/Factory | Entered Lower Caves 11696 | -7/Lower Caves | Attracted the attention of an 0b10 checkpoint 11854 | -7/Lower Caves | Discovered new exit (range 14) 11859 | -7/Lower Caves | Identified exit to Lower Caves 11927 | -7/Lower Caves | Encountered a Warlord checkpoint 12003 | -7/Lower Caves | Entered another Lower Caves area 12004 | -7/Lower Caves | Discovered new exit (range 14) 12011 | -7/Lower Caves | Identified exit to Data Miner 12100 | -7/Lower Caves | Spotted B-75 Beast 12179 | -7/Lower Caves | Learned location of Zion (-6) 12198 | -7/Lower Caves | Encountered a Warlord checkpoint 12674 | -7/Lower Caves | Entered Data Miner 12676 | -7/Data Miner | Discovered new exit (range 6) 12681 | -7/Data Miner | Met Data Miner 12689 | -7/Data Miner | Received God Mode back door access code from Data Miner 12695 | -7/Data Miner | Identified exit to Proximity Caves 12695 | -7/Data Miner | Entered Proximity Caves 12724 | -6/Proximity Caves | System corruption reached 10% 12860 | -6/Proximity Caves | Spotter reported a threat 12870 | -6/Proximity Caves | Learned Factory emergency access door positions 12978 | -6/Proximity Caves | Discovered new exit (range 10) 12981 | -6/Proximity Caves | Identified exit to Factory 13173 | -6/Proximity Caves | Received a Behemoth hack from an annoying Tinkerer 13541 | -6/Proximity Caves | Attracted the attention of an 0b10 checkpoint 13622 | -6/Proximity Caves | Entered Factory 13622 | -6/Factory | Evolved 2 slots: Utility x2 13690 | -6/Factory | Repaired Imp. VTOL Module 13751 | -6/Factory | Repaired Imp. VTOL Module 13906 | -6/Factory | Hacking Suite fried by hacking feedback 13906 | -6/Factory | Imp. Hacking Suite fried by hacking feedback 14078 | -6/Factory | Repaired Mni. Grenade Launcher? 14079 | -6/Factory | Fabricated H-66 Slayer? 14156 | -6/Factory | Fabricated Hacking Suite (x1) 14385 | -6/Factory | System corruption reached 10% 14405 | -6/Factory | Discovered new exit (range 14) 14442 | -6/Factory | Repaired Mni. Grenade Launcher 14572 | -6/Factory | Repaired Hvy. Flail 14883 | -6/Factory | Fabricated Biomechanical Wings (x1) 14892 | -6/Factory | Discovered new exit (range 12) 14897 | -6/Factory | Identified exit to Factory 14909 | -6/Factory | Discovered new exit (range 11) 14911 | -6/Factory | Identified exit to Lower Caves 15152 | -6/Factory | Fabricated Biomechanical Wings? 15191 | -6/Factory | Sucked down chute 15191 | -6/Factory | Entered Waste 15197 | -6/Waste | Spotted C-40 Crusher 15200 | -6/Waste | Spotted C-40 Crusher 15203 | -6/Waste | Spotted C-40 Crusher 15206 | -6/Waste | EMP discharged 15210 | -6/Waste | Discovered new exit (range 11) 15212 | -6/Waste | Identified exit to Factory 15213 | -6/Waste | Entered Factory 15243 | -6/Factory | Incoming investigation squad redirected 15293 | -6/Factory | Fabricated Biomechanical Wings (x1) 15329 | -6/Factory | Incoming investigation squad redirected 15345 | -6/Factory | Fabricated Biomechanical Wings (x1) 15708 | -6/Factory | Core integrity fell below 50% 15784 | -6/Factory | Lost 6 parts (1p3u2w) 15801 | -6/Factory | Core integrity fell below 20% 15829 | -6/Factory | Destroyed by H-66 Slayer with Heavy Assault Rifle Last Messages --------------- 15813_ Field strength at 70. 15814_ Field strength at 64. 15815_ Field strength at 58. 15816_ Slug penetrates Wall. 15816_ Field strength at 52. 15817_ Field strength at 46. 15818_ Field strength at 40. 15819_ Slug penetrates Wall. 15819_ Field strength at 34. 15820_ Field strength at 28. 15821_ Field strength at 22. 15822_ Field strength at 16. 15822_ Slug penetrates Wall. 15823_ Field strength at 10. 15824_ Field strength at 4. 15825_ Stasis field depleted. 15825_ Slug penetrates Wall. 15825_ Penetrated by Slug. 15825_ Fission Core destroyed. 15826_ Imp. Shield Generator destroyed. Map ----- +----------------------------------------------------+ | ?????????####+#########??# #?????????????????? | | ????????????# #???????######+####????????????????? | | ????????????# #???????# ????????????????? | | ????????????# #???????# ????????????????? | | ????????????# #???????# ????????????????? | | ?????????####+#######?# ????????????????? | | ?????????# """ #?# """ """ ????????????????? | | ?????????# ! "T" #?# """ """ ????????????????? | | ?????????# #?# """ """ ????????????????? | | ?????????# """ """ #?# ????????????????? | | ?????????# """ """ #?# """ """ ????????????????? | | ?????????# """ """ #?# """ """ ????????????????? | | ?????????# #?# """ """ ????????????????? | | ?????????# = """ #?# ??????????????? # | | ?????????# """ #################??????????? | | ?????????#!] """ ## #??????????? | | ##########]] ## """ """ """ #??????????# | | # #] """ # """ """ """ #??????????# | | # # """ ## """ """ """ !#?????????? | | # """ # """ ## #??????????# | | # """ # ## #????????### | | # """ #+###+#################+#;######+#### | | # # g % | | # """ # | | #[ """ # g | | # """ + @ = | | # # g | | # """ # g Y | | # """ # h Y | | # """ #####+#+######;#################+#### | | # ## #???? ???????????????? ######" | | # """ ## #??? ???????????????? # | | # """ ## """#??? ""???????????????""" # | | # """ ## """#?? ""??????????????? # | | # ## """#? ""??????????????"""" # | | ########### #? ??????????????? # | | ??????????# """# ???????????????""""" # """" | | ??????????# """# ????????????????? # """" | | ??????????# """# ?????????????????????? # """" | | ??????????# # ??????????????????????? #??""" | | ??????????# """#???????????????????????? #??""" | | ??????????# """#????????????????????????????""" | | ??????????# """#????????????????????????????? | | ??????????# #?????????????????????????????### | | ??????????########???????????????????????????????? | | ?????????????????????????????????????????????????? | | ?????????????????????????????????????????????????? | | ?????????????????????????????????????????????????? | | ?????????????????????????????????????????????????? | | ?????????????????????????????????????????????????? | +----------------------------------------------------+ Best States ------------- Heat Dissipation 48 Energy Generation 19 Energy Capacity 500 Matter Stores 450 Matter Capacity 500 Sight Range 16 Robot Scan Range 15 Terrain Scan Density 10 Jamming Range 12 Additional Mass Support 9 Armor Coverage 300 Resistance: EX 25 Evasion (%) 64 Targeting Accuracy 5 Melee Accuracy 15 Recoil Reduction 4 Offensive Hacking 43 Defensive Hacking 12 Authchip Count 1 Item Schematics ----------------- Med. Storage Unit | -10/Materials | Hacked Sml. Storage Unit | -10/Materials | Hacked VTOL Module | -9/Materials | Scanalyzed Hacking Suite | -9/Materials | Scanalyzed Mni. Grenade Launcher | -9/Materials | Scanalyzed Minigun | -9/Materials | Scanalyzed Lgt. Nuclear Core | -9/Materials | Scanalyzed Hcp. Matter Pod | -9/Materials | Extracted Melee Analysis Suite | -8/Materials | Extracted Core Shielding | -8/Materials | Extracted Reflective Plating | -8/Materials | Extracted Disposable Heat Sink | -8/Materials | Extracted Imp. VTOL Module | -7/Factory | Scanalyzed Combat Drone Bay | -7/Data Miner | Free Lgt. Regenerative Plating | -7/Data Miner | Free Biomechanical Wings | -7/Data Miner | Free Gravity Neutralizer | -7/Data Miner | Free Shock Maul | -7/Data Miner | Free Field Propulsion Drive | -7/Data Miner | Free Adv. Cooling System | -7/Data Miner | Free Smartbomb Launcher | -7/Data Miner | Free Lrn. Missile Launcher | -6/Factory | Hacked Robot Schematics ------------------ M-14 Sweeper | -7/Data Miner | Free H-66 Slayer | -7/Data Miner | Free W-25 Informer | -7/Data Miner | Free I-47 Archangel | -7/Data Miner | Free E-15 Imp | -7/Data Miner | Free R-10 Processor | -7/Data Miner | Free I-36 Angel | -7/Data Miner | Free Fabricated ------------ Imp. VTOL Module | x1 | -7/Factory | Authchip Imp. VTOL Module | x1 | -7/Factory | Authchip Imp. VTOL Module | x1 | -7/Factory H-66 Slayer | x2 | -6/Factory | Preloaded Hacking Suite | x1 | -6/Factory | Authchip Biomechanical Wings | x1 | -6/Factory | Authchip Biomechanical Wings | x1 | -6/Factory Biomechanical Wings | x1 | -6/Factory Biomechanical Wings | x1 | -6/Factory Repaired ---------- Assault Rifle | 27% | -10/Materials Adv. Beam Cannon | 47% | -10/Materials Hrd. Light Armor Plating | 9% | -9/Materials Com. Matter Pod | 33% | -9/Materials Minigun | 31% | -9/Materials Minigun | 25% | -8/Materials Lgt. Treads | 27% | -8/Materials Lgt. Treads | 42% | -8/Materials Lgt. Treads | 50% | -8/Materials Lgt. Treads | 57% | -8/Materials Lgt. Treads | 67% | -8/Materials Enh. Autogun | 90% | -8/Materials Imp. VTOL Module | 30% | -6/Factory Imp. VTOL Module | 64% | -6/Factory Mni. Grenade Launcher | 8% | -6/Factory Mni. Grenade Launcher | 72% | -6/Factory Hvy. Flail | 51% | -6/Factory Studied --------- Lgt. Treads | -8/Materials | Hacked VTOL Module | -8/Materials | Hacked Mic. Nuclear Core | -6/Factory | Hacked Alien Tech Used ----------------- None Achievements -------------- None Challenges ------------ None Game ------ Seed DisassembledScatterSlayer Manual? 0 Play Time 01:57:22 Cumulative 238.7 hours Start 2025.12.27 @ 12:51:26 End 2025.12.27 @ 15:03:45 Sessions 1 Manual Loads 0 Difficulty Rogue Special Mode None Game No. 318 Rogue 317 Adventurer 1 Explorer 0 Win Type - Total 2 Types 1/0/0/1/0/0/0/0/0/0 Lore% 69 Gallery% 63 Achievement% 55 Wizard Run 0 Options --------- Layout 0 ASCII 0 Keyboard 0 Movement Numpad Keybinds 0 Fullscreen 1 Font 24/Smallcaps Map View 76x50 Zoom Use 0% Tactical HUD 1 Map Filters NONE Filters NONE Steam 1 RUN: 21525908-6334-445c-b6af-e3257a87f3b4